bitfinex/quotes_BTCUSD_20250617
["timestamp","ask_amount","ask_price","bid_price","bid_amount"]
[1750175719350,1.64372676,104350.0,104340.0,0.00104]
[1750175719558,1.85592676,104350.0,104340.0,0.00104]
[1750175720192,1.96327813,104350.0,104340.0,0.00104]
[1750175720396,0.2012649,104340.0,104330.0,1e-08]
[1750175720608,1.11857562,104340.0,104330.0,0.00047503]
[1750175720794,1.24765767,104340.0,104330.0,0.00047503]
[1750175721458,1.45985767,104340.0,104330.0,0.00047503]
[1750175721919,1.46085767,104340.0,104330.0,0.00147503]
[1750175722187,1.24865767,104340.0,104330.0,0.00147503]
[1750175722406,1.43815744,104340.0,104330.0,0.00147503]
[1750175723073,1.25475144,104340.0,104330.0,0.00147503]
[1750175723301,1.25675144,104340.0,104330.0,0.00147503]
[1750175723989,0.5955317,104340.0,104330.0,0.00147503]
[1750175724200,1.46895144,104340.0,104330.0,0.00147503]
[1750175724646,1.25675144,104340.0,104330.0,0.00147503]
[1750175724893,1.46895144,104340.0,104330.0,0.00147503]
[1750175725569,1.30295144,104340.0,104330.0,0.00147503]
[1750175725796,1.25675144,104340.0,104330.0,0.00147503]
[1750175726020,1.46895144,104340.0,104330.0,0.00147503]
[1750175726247,1.46695144,104340.0,104330.0,0.00147503]
[1750175726468,1.48963781,104340.0,104330.0,0.00147503]
[1750175726684,1.49163781,104340.0,104330.0,0.00147503]
[1750175727393,1.48963781,104340.0,104330.0,0.00147503]
[1750175727881,1.48863781,104340.0,104330.0,0.00047503]
[1750175728571,1.27643781,104340.0,104330.0,0.00047503]
[1750175728802,1.42793781,104340.0,104330.0,0.00147503]
[1750175729048,1.42493781,104340.0,104330.0,0.00047503]
[1750175729288,1.42493781,104340.0,104330.0,0.00147503]
[1750175729505,1.42593781,104340.0,104330.0,0.00147503]
[1750175730236,1.42593781,104340.0,104330.0,0.01040788]
[1750175731347,1.45440362,104340.0,104330.0,0.01040788]
[1750175731802,1.51790362,104340.0,104330.0,0.01040788]
[1750175732292,1.51786362,104340.0,104330.0,0.01040788]
[1750175734083,1.30570362,104340.0,104330.0,0.01040788]
[1750175734300,1.51786362,104340.0,104330.0,0.01040788]
[1750175735147,1.55581803,104340.0,104330.0,0.01041222]
[1750175735622,1.55578745,104340.0,104330.0,0.01041222]
[1750175736086,0.61852504,104330.0,104320.0,0.20004]
[1750175736307,1.32131876,104330.0,104320.0,0.20004]
[1750175736535,1.78715274,104330.0,104320.0,0.1309877]
[1750175736756,1.78715274,104330.0,104320.0,0.08302039]
[1750175736975,1.78715274,104330.0,104320.0,0.03505308]
[1750175736976,1.7938133,104330.0,104320.0,0.03505308]
[1750175737195,0.20130349,104320.0,104310.0,4e-05]
[1750175737454,0.53195196,104300.0,104290.0,0.02822761]
[1750175737671,0.84031372,104300.0,104290.0,0.02822761]
[1750175738353,1.18031372,104300.0,104290.0,0.02822761]
[1750175738579,1.20305031,104300.0,104290.0,0.02822761]
[1750175738801,1.20405031,104300.0,104290.0,0.03236442]
[1750175739023,1.30019953,104300.0,104290.0,0.03236442]
[1750175739258,1.30019953,104300.0,104290.0,0.00413681]
[1750175739484,1.33189953,104300.0,104290.0,0.00413681]
[1750175739991,1.34458532,104300.0,104290.0,0.00417681]
[1750175740227,1.37698532,104300.0,104290.0,0.00417681]
[1750175740673,1.37698532,104300.0,104290.0,0.00517681]
[1750175740902,1.37598532,104300.0,104290.0,0.00117681]
[1750175741122,1.01297545,104300.0,104290.0,0.00017681]
[1750175741342,1.34458532,104300.0,104290.0,0.00317681]
[1750175741571,1.37358532,104300.0,104290.0,0.00017681]
[1750175741807,1.37358532,104300.0,104290.0,0.00117681]
[1750175742031,1.57706532,104300.0,104290.0,0.00117681]
[1750175742218,1.54706532,104300.0,104290.0,0.00117681]
[1750175742924,1.57706532,104300.0,104290.0,0.00117681]
[1750175743363,1.60549177,104300.0,104290.0,0.00117681]
[1750175745434,1.39349177,104300.0,104290.0,0.00117681]
[1750175745664,1.60545177,104300.0,104290.0,0.00117681]
[1750175746115,1.39349177,104300.0,104290.0,0.00117681]
[1750175746361,1.60545177,104300.0,104290.0,0.00117681]
[1750175747016,1.43137358,104300.0,104290.0,0.00117681]
[1750175747235,1.67214058,104300.0,104290.0,0.00117681]
[1750175747939,0.87197127,104290.0,104280.0,0.01567721]
[1750175748159,1.05491004,104290.0,104280.0,0.01581407]
[1750175748397,1.26687004,104290.0,104280.0,0.01581407]
[1750175748832,1.32779196,104290.0,104280.0,0.01581407]
[1750175749520,1.29539196,104290.0,104280.0,0.04581407]
[1750175749756,1.08343196,104290.0,104280.0,0.04581407]
[1750175749984,1.29539196,104290.0,104280.0,0.04581407]
[1750175750206,1.29539196,104290.0,104280.0,0.04681407]
[1750175750647,0.99094962,104290.0,104280.0,0.04681407]
[1750175750908,1.20290962,104290.0,104280.0,0.07861407]
[1750175751123,1.20390962,104290.0,104280.0,0.08161407]
[1750175752066,0.87329975,104290.0,104280.0,0.08161407]
[1750175752290,1.01213668,104290.0,104280.0,0.08161407]
[1750175752519,1.29325923,104290.0,104280.0,0.08161407]
[1750175752971,0.28080636,104290.0,104280.0,0.60401527]
[1750175753196,0.21194977,104290.0,104280.0,0.29258443]
[1750175753422,0.42394977,104290.0,104280.0,0.30217372]
[1750175753656,0.4143614,104290.0,104280.0,0.29258443]
[1750175753872,0.4133614,104290.0,104280.0,0.08820363]
[1750175754100,0.40377294,104290.0,104280.0,0.07761407]
[1750175754324,0.20236094,104290.0,104280.0,0.28399496]
[1750175754573,0.84017312,104290.0,104280.0,0.07801407]
[1750175754783,0.84017312,104290.0,104280.0,0.08501407]
[1750175755011,0.84117312,104290.0,104280.0,0.08701407]
[1750175755683,0.84017312,104290.0,104280.0,0.08001407]
[1750175756135,0.84017312,104290.0,104280.0,0.07801407]
[1750175756359,0.93632234,104290.0,104280.0,0.08001407]
[1750175757028,0.93732234,104290.0,104280.0,0.08301407]
[1750175757679,0.51056325,104290.0,104280.0,0.08301407]
[1750175757916,0.20236149,104290.0,104280.0,0.08301407]
[1750175758173,0.02017655,104290.0,104280.0,0.63418276]
[1750175758382,0.18601627,104290.0,104280.0,0.64377168]
[1750175758647,0.001,104290.0,104280.0,0.64377168]
[1750175758882,0.0201759,104290.0,104280.0,0.64377168]
[1750175759145,0.06373187,104290.0,104280.0,0.64377168]
[1750175759409,0.01058781,104290.0,104280.0,0.42394442]
[1750175759673,0.02017581,104290.0,104280.0,0.75455429]
[1750175759903,0.02976437,104290.0,104280.0,0.28239478]
[1750175760137,0.019176,104290.0,104280.0,0.30157299]
[1750175760350,0.10176711,104290.0,104280.0,0.31516218]
[1750175760572,0.09217893,104290.0,104280.0,0.30816218]
[1750175760802,0.001,104290.0,104280.0,0.74955466]
[1750175761055,0.002,104290.0,104280.0,1.08716453]
[1750175762230,0.11131794,104320.0,104310.0,0.08297333]
[1750175762448,0.31262116,104320.0,104310.0,0.60531937]
[1750175762686,0.31262116,104320.0,104310.0,0.61490571]
[1750175762890,0.31262116,104320.0,104310.0,0.29388209]
[1750175763362,0.20511628,104320.0,104310.0,0.30346825]
[1750175763624,0.13048916,104320.0,104310.0,0.30346825]
[1750175763879,0.08921875,104320.0,104310.0,0.30346825]
[1750175764112,0.02875012,104340.0,104330.0,0.2837532]
[1750175764344,0.266543,104350.0,104340.0,0.28373236]
[1750175764561,0.02232381,104350.0,104340.0,0.29331576]
[1750175764804,0.38933007,104350.0,104340.0,0.0633]
[1750175765019,0.19168104,104340.0,104330.0,0.0322]
[1750175765260,0.71123853,104340.0,104330.0,0.0322]
[1750175765502,0.20128438,104330.0,104320.0,0.0322]
[1750175765732,0.61501615,104330.0,104320.0,0.0322]
[1750175766178,0.20130349,104320.0,104310.0,0.0357]
[1750175766426,0.36706349,104320.0,104310.0,0.0357]
[1750175766667,0.21090932,104310.0,104300.0,0.2549538]
[1750175767064,0.3042415,104310.0,104300.0,0.0632]
[1750175767067,0.3042415,104310.0,104290.0,0.0305]
[1750175767068,0.20135596,104300.0,104290.0,0.0305]
[1750175767292,0.36707596,104300.0,104290.0,0.0305]
[1750175767989,0.36707596,104300.0,104280.0,0.27346854]
[1750175767990,0.21094977,104290.0,104280.0,0.27346854]
[1750175768222,0.21094977,104290.0,104280.0,0.2926472]
[1750175768444,0.01917683,104290.0,104280.0,0.30223612]
[1750175768677,0.43233832,104290.0,104280.0,0.30237298]
[1750175768901,0.44192696,104290.0,104280.0,0.30237298]
[1750175769126,0.50980318,104290.0,104280.0,0.30237298]
[1750175769351,0.50980318,104290.0,104280.0,0.30537298]
[1750175769586,0.50980318,104290.0,104280.0,0.29578406]
[1750175769813,0.50980318,104290.0,104280.0,0.30537316]
[1750175770485,0.50980318,104290.0,104280.0,0.31496217]
[1750175770707,0.51080318,104290.0,104280.0,0.32296217]
[1750175771194,0.001,104290.0,104280.0,0.32296217]
[1750175771420,0.001,104290.0,104280.0,0.74628286]
[1750175771657,0.001,104290.0,104280.0,1.02278547]
[1750175771881,0.001,104290.0,104280.0,1.43651724]
[1750175772108,0.001,104290.0,104280.0,1.02278547]
[1750175772333,0.001,104290.0,104280.0,1.43651724]
[1750175772564,0.001,104290.0,104280.0,1.02278547]
[1750175772793,0.001,104290.0,104280.0,1.11893469]
[1750175773780,0.01917232,104310.0,104300.0,0.28601662]
[1750175774007,0.00958598,104310.0,104300.0,0.28651598]
[1750175774233,0.57081149,104320.0,104310.0,0.24380932]
[1750175774466,0.00958506,104320.0,104310.0,0.25339566]
[1750175774689,0.22047434,104320.0,104310.0,0.23422288]
[1750175774910,0.23006022,104320.0,104310.0,0.23422288]
[1750175775153,0.23006022,104320.0,104310.0,0.24380941]
[1750175775379,0.03834225,104320.0,104310.0,0.26298219]
[1750175775621,0.28306351,104320.0,104310.0,0.23422288]
[1750175775849,0.25430714,104320.0,104310.0,0.19173617]
[1750175776516,0.24872135,104320.0,104310.0,0.19173617]
[1750175776742,0.24872135,104320.0,104300.0,0.25061634]
[1750175776972,0.02875867,104310.0,104300.0,0.25061634]
[1750175777197,0.05650667,104310.0,104300.0,0.25061634]
[1750175777432,0.25140048,104320.0,104310.0,0.25059548]
[1750175777885,0.43911827,104320.0,104310.0,0.25059566]
[1750175778102,0.43353284,104320.0,104310.0,0.2410095]
[1750175778326,0.43353284,104320.0,104310.0,0.25059603]
[1750175778547,0.38052928,104320.0,104310.0,0.26976881]
[1750175778810,0.38052928,104320.0,104310.0,0.2410095]
[1750175779037,0.38052928,104320.0,104310.0,0.2420095]
[1750175779252,0.37652928,104320.0,104310.0,0.2420095]
[1750175779482,0.37652928,104320.0,104310.0,0.22283617]
[1750175779699,0.44309907,104320.0,104310.0,0.22283617]
[1750175780800,0.44309907,104320.0,104310.0,0.23242297]
[1750175781255,0.44309907,104320.0,104310.0,0.0311]
[1750175781470,0.44309907,104320.0,104310.0,0.23242297]
[1750175781471,0.43351337,104320.0,104310.0,0.23242297]
[1750175781692,0.38707434,104320.0,104310.0,0.29338228]
[1750175781917,0.02975618,104320.0,104310.0,0.70711405]
[1750175782357,0.01058515,104320.0,104310.0,0.70711405]
[1750175782597,0.001,104320.0,104310.0,0.70711405]
[1750175782839,0.001,104320.0,104310.0,0.7216549]
[1750175783289,0.001,104320.0,104310.0,0.98349666]
[1750175783743,0.001,104320.0,104310.0,1.07964588]
[1750175783989,0.001,104320.0,104310.0,0.98349666]
[1750175784216,0.001,104320.0,104310.0,0.81789666]
[1750175784217,0.02017039,104320.0,104310.0,0.81789666]
[1750175784450,0.001,104320.0,104310.0,0.98349666]
[1750175784698,0.001,104320.0,104310.0,1.32349666]
[1750175784929,0.001,104320.0,104310.0,1.41964588]
[1750175785190,0.001,104320.0,104310.0,1.41864588]
[1750175785647,0.06512488,104350.0,104340.0,0.25213208]
[1750175785877,0.08429077,104350.0,104340.0,0.45039208]
[1750175786095,0.01916488,104350.0,104340.0,0.45039208]
[1750175786331,0.09579894,104350.0,104340.0,0.28483208]
[1750175786555,0.0095823,104350.0,104340.0,0.45039208]
[1750175786806,0.01916479,104350.0,104340.0,0.45039208]
[1750175787024,0.03022239,104350.0,104340.0,0.45039208]
[1750175787253,0.24105086,104350.0,104340.0,0.28483208]
[1750175787476,0.24105086,104350.0,104340.0,0.45039208]
[1750175787723,0.08425425,104350.0,104340.0,0.45039208]
[1750175787949,0.1397972,104350.0,104340.0,0.45039208]
[1750175788384,0.32187757,104350.0,104340.0,0.44076868]
[1750175788610,0.32087757,104350.0,104340.0,0.45035208]
[1750175788832,0.3304607,104350.0,104340.0,0.45035208]
[1750175789076,0.3314607,104350.0,104340.0,0.45035208]
[1750175789301,0.32187757,104350.0,104340.0,0.45135208]
[1750175789519,0.1302149,104350.0,104340.0,0.45335208]
[1750175789740,0.07618285,104350.0,104340.0,0.45335208]
[1750175789972,0.04596,104350.0,104340.0,0.45335208]
[1750175790198,0.26637142,104350.0,104340.0,0.39190104]
[1750175790443,0.21082866,104350.0,104340.0,0.24554905]
[1750175790723,0.24720571,104350.0,104340.0,0.0347]
[1750175790947,0.24720571,104350.0,104340.0,0.003]
[1750175790948,0.3210847,104350.0,104340.0,0.003]
[1750175791165,0.3512847,104350.0,104340.0,0.003]
[1750175791384,0.3512847,104350.0,104340.0,0.002]
[1750175791629,0.201265,104340.0,104330.0,0.21085266]
[1750175791850,0.21084877,104340.0,104330.0,0.23002204]
[1750175792072,0.22043245,104340.0,104330.0,0.23002204]
[1750175792285,0.22043245,104340.0,104330.0,0.23960645]
[1750175792508,0.22043245,104340.0,104330.0,0.25113707]
[1750175792726,0.2300165,104340.0,104330.0,0.26072158]
[1750175792960,0.22043245,104340.0,104330.0,0.2703059]
[1750175793181,0.22043245,104340.0,104330.0,0.26072158]
[1750175793401,0.07787692,104340.0,104330.0,0.2703059]
[1750175793620,0.2300165,104340.0,104330.0,0.2703059]
[1750175793850,0.02875141,104340.0,104330.0,0.2703059]
[1750175794080,0.01916745,104340.0,104330.0,0.2703059]
[1750175794372,0.0095834,104340.0,104330.0,0.2703059]
[1750175794604,0.00958322,104340.0,104330.0,0.28343588]
[1750175794826,0.0191669,104340.0,104330.0,0.28343588]
[1750175795474,0.0287504,104340.0,104330.0,0.28343588]
[1750175795700,0.03833426,104340.0,104330.0,0.28543588]
[1750175795912,0.03833426,104340.0,104330.0,0.23398419]
[1750175795913,0.2585706,104340.0,104330.0,0.23398419]
[1750175796133,0.2585706,104340.0,104330.0,0.2531533]
[1750175796355,0.2585706,104340.0,104330.0,0.2541533]
[1750175796997,0.2585706,104340.0,104330.0,0.26373771]
[1750175797444,0.01916708,104340.0,104330.0,0.27332203]
[1750175797671,0.01916708,104340.0,104330.0,0.30402203]
[1750175797882,0.01916708,104340.0,104330.0,0.30202203]
[1750175798128,0.01916708,104340.0,104330.0,0.30102203]
[1750175798787,0.0095834,104340.0,104330.0,0.30102203]
[1750175798997,0.01916708,104340.0,104330.0,0.30102203]
[1750175799203,0.01916708,104340.0,104330.0,0.30202203]
[1750175799438,0.01916708,104340.0,104330.0,0.30402203]
[1750175799756,0.0095834,104340.0,104330.0,0.30402203]
[1750175799967,0.0191669,104340.0,104330.0,0.30402203]
[1750175800407,0.02875049,104340.0,104330.0,0.30402203]
[1750175801117,0.03833435,104340.0,104330.0,0.28485311]
[1750175801350,1.02187765,104340.0,104330.0,0.003]
[1750175801579,1.36187765,104340.0,104330.0,0.003]
[1750175801825,1.41341796,104340.0,104330.0,0.003]
[1750175802070,1.44184441,104340.0,104330.0,0.003]
[1750175802297,0.22049548,104310.0,104300.0,0.43055774]
[1750175802525,0.22049548,104310.0,104300.0,0.24102972]
[1750175802738,0.22049548,104310.0,104300.0,0.25061717]
[1750175803172,0.21090932,104310.0,104300.0,0.26020453]
[1750175803400,0.23200055,104310.0,104300.0,0.39684218]
[1750175803626,0.23209147,104310.0,104300.0,0.38725455]
[1750175803852,0.23209147,104310.0,104290.0,0.44772074]
[1750175804080,0.00958745,104300.0,104290.0,0.56809116]
[1750175804305,0.2205169,104300.0,104290.0,0.25687368]
[1750175804565,0.03834952,104300.0,104290.0,0.43186168]
[1750175804780,0.02876198,104300.0,104290.0,0.43186168]
[1750175804991,0.02876198,104300.0,104290.0,0.46196168]
[1750175805176,0.01917453,104300.0,104290.0,0.46396168]
[1750175805400,0.01917407,104300.0,104290.0,0.46496168]
[1750175805616,0.02876143,104300.0,104290.0,0.46496168]
[1750175805834,0.01917407,104300.0,104290.0,0.46496168]
[1750175806257,0.02876143,104300.0,104290.0,0.46496168]
[1750175806467,0.03334897,104300.0,104290.0,0.46496168]
[1750175806645,0.02376143,104300.0,104290.0,0.46496168]
[1750175806856,0.03334897,104300.0,104290.0,0.46496168]
[1750175807054,0.01417407,104300.0,104290.0,0.46496168]
[1750175807658,0.01917389,104300.0,104290.0,0.46496168]
[1750175807832,0.0383486,104300.0,104290.0,0.46496168]
[1750175808044,0.02876106,104300.0,104290.0,0.46496168]
[1750175808474,0.01917389,104300.0,104290.0,0.46496168]
[1750175808698,0.01917389,104300.0,104290.0,0.29956168]
[1750175808849,0.01917407,104300.0,104290.0,0.46492168]
[1750175809046,0.01917398,104300.0,104290.0,0.46492168]
[1750175809252,0.02884995,104310.0,104300.0,0.23010397]
[1750175809454,0.02884995,104310.0,104300.0,0.26250397]
[1750175809455,0.01926324,104310.0,104300.0,0.26250397]
[1750175809703,9.092e-05,104310.0,104300.0,0.72387659]
[1750175809918,0.00967708,104310.0,104300.0,0.72387659]
[1750175810118,9.092e-05,104310.0,104300.0,0.31014482]
[1750175810321,0.0096769,104310.0,104300.0,0.31014482]
[1750175810727,0.01926297,104310.0,104300.0,0.31014482]
[1750175811351,0.02884913,104310.0,104300.0,0.31014482]
[1750175811955,0.0096769,104310.0,104300.0,0.31014482]
[1750175812582,9.092e-05,104310.0,104300.0,0.31014482]
[1750175812802,0.00967699,104310.0,104300.0,0.31018482]
[1750175813655,0.0096769,104310.0,104300.0,0.31018482]
[1750175813864,0.01926306,104310.0,104300.0,0.31018482]
[1750175814280,0.00967699,104310.0,104300.0,0.31018482]
[1750175814701,0.01926333,104310.0,104300.0,0.31018482]
[1750175814924,0.02884986,104310.0,104300.0,0.31018482]
[1750175815342,0.04802319,104310.0,104300.0,0.27708482]
[1750175815551,0.23975936,104310.0,104300.0,0.27708482]
[1750175815774,0.02884986,104310.0,104300.0,0.27708482]
[1750175816004,0.03843648,104310.0,104300.0,0.27708482]
[1750175816229,0.24937893,104310.0,104300.0,0.2433699]
[1750175816438,0.25896573,104310.0,104300.0,0.26254452]
[1750175816653,0.25896573,104310.0,104300.0,0.2433699]
[1750175816874,0.24937939,104310.0,104300.0,0.36670227]
[1750175817086,0.24937939,104310.0,104300.0,0.20138227]
[1750175817468,0.27079286,104310.0,104300.0,4e-05]
[1750175817700,0.43611286,104310.0,104300.0,4e-05]
[1750175817925,0.88094463,104310.0,104300.0,4e-05]
[1750175818143,0.97718639,104310.0,104300.0,4e-05]
[1750175819452,0.94839404,104310.0,104300.0,4e-05]
[1750175820120,0.53466227,104310.0,104300.0,4e-05]
[1750175820328,0.94839404,104310.0,104300.0,4e-05]
[1750175820549,0.95139404,104310.0,104300.0,4e-05]
[1750175820767,0.53766227,104310.0,104300.0,4e-05]
[1750175820991,0.95139404,104310.0,104300.0,4e-05]
[1750175821244,1.04754326,104310.0,104300.0,4e-05]
[1750175821694,1.07659672,104310.0,104300.0,4e-05]
[1750175822333,1.41659672,104310.0,104300.0,4e-05]
[1750175822578,0.01917664,104290.0,104280.0,0.01567721]
[1750175822815,1.12422311,104290.0,104280.0,0.01567721]
[1750175823055,1.12422311,104290.0,104270.0,4e-05]
[1750175823056,0.68061248,104280.0,104270.0,4e-05]
[1750175823298,0.71271176,104280.0,104270.0,4e-05]
[1750175823517,0.42205,104280.0,104270.0,4e-05]
[1750175823745,0.22066873,104280.0,104270.0,0.22062006]
[1750175824011,0.22055873,104280.0,104270.0,0.23164011]
[1750175824224,0.22055873,104280.0,104270.0,0.25082062]
[1750175824437,0.43159873,104280.0,104270.0,0.25082062]
[1750175824658,0.43159873,104280.0,104270.0,0.24123041]
[1750175824881,0.43159873,104280.0,104270.0,0.24223041]
[1750175824882,0.41542071,104280.0,104270.0,0.24223041]
[1750175825119,0.41546071,104280.0,104270.0,0.23264011]
[1750175825303,0.26510407,104280.0,104270.0,0.23264011]
[1750175825503,0.47618407,104280.0,104270.0,0.23264011]
[1750175825807,0.47618407,104280.0,104270.0,0.24223041]
[1750175826049,0.02217793,104280.0,104270.0,0.26141027]
[1750175826227,0.03176731,104280.0,104270.0,0.26141027]
[1750175826447,0.22355864,104280.0,104270.0,0.24223041]
[1750175826773,0.22355864,104280.0,104270.0,0.24223032]
[1750175826992,0.20438071,104280.0,104270.0,0.23264011]
[1750175827219,0.26510407,104280.0,104270.0,0.24223022]
[1750175827429,0.09249131,104280.0,104270.0,0.26141017]
[1750175827638,0.22355928,104280.0,104270.0,0.27100001]
[1750175827833,0.23314884,104280.0,104270.0,0.26141017]
[1750175828030,0.03176795,104280.0,104270.0,0.27100001]
[1750175828254,0.02217848,104280.0,104270.0,0.27100001]
[1750175828430,0.03176804,104280.0,104270.0,0.27100001]
[1750175828606,0.22355937,104280.0,104270.0,0.26141017]
[1750175828806,0.02217848,104280.0,104270.0,0.26141017]
[1750175829061,0.06467762,104280.0,104270.0,0.26141017]
[1750175829268,0.07426626,104280.0,104270.0,0.26141017]
[1750175829471,0.09344502,104280.0,104270.0,0.25182024]
[1750175829682,0.28523635,104280.0,104270.0,0.26141009]
[1750175829901,0.08385555,104280.0,104270.0,0.26141009]
[1750175830457,0.18741793,104280.0,104270.0,0.26141009]
[1750175830676,0.2065966,104280.0,104270.0,0.26141009]
[1750175831349,0.18741793,104280.0,104270.0,0.26141009]
[1750175832003,0.003,104280.0,104270.0,0.81662447]
[1750175832453,0.003,104280.0,104270.0,0.98186447]
[1750175832679,0.003,104280.0,104270.0,1.25277369]
[1750175832904,0.003,104280.0,104270.0,1.41801369]
[1750175833326,0.003,104280.0,104270.0,1.41901369]
[1750175833542,0.2599431,104310.0,104270.0,1.41801369]
[1750175833755,0.25035639,104310.0,104300.0,0.22051662]
[1750175833968,0.30851753,104310.0,104300.0,0.22051662]
[1750175834106,0.30847753,104310.0,104300.0,0.22051662]
[1750175834322,0.29889073,104310.0,104300.0,0.22051662]
[1750175834724,0.30847744,104310.0,104300.0,0.22051662]
[1750175834930,0.02984977,104310.0,104300.0,0.25321662]
[1750175835134,0.19704977,104310.0,104300.0,0.25321662]
[1750175835365,0.19704959,104310.0,104300.0,0.25321662]
[1750175835571,0.04143612,104310.0,104300.0,0.25321662]
[1750175835776,0.03284959,104310.0,104300.0,0.25321662]
[1750175836110,0.23417247,104310.0,104300.0,0.23404218]
[1750175836317,0.27887271,104310.0,104300.0,0.22051699]
[1750175836517,0.26928664,104310.0,104300.0,0.22051699]
[1750175836756,0.26728664,104310.0,104300.0,0.22051699]
[1750175836899,0.26728664,104310.0,104300.0,0.22151699]
[1750175837267,0.26728664,104310.0,104300.0,0.19275455]
[1750175837461,0.25770048,104310.0,104300.0,0.20234218]
[1750175837699,0.25770048,104310.0,104300.0,0.21192972]
[1750175838556,0.25770048,104310.0,104300.0,0.22151717]
[1750175838761,0.25770048,104310.0,104300.0,0.24069179]
[1750175838967,0.02985014,104310.0,104300.0,0.21192972]
[1750175839186,0.03943694,104310.0,104300.0,0.22151717]
[1750175839598,0.01067708,104310.0,104300.0,0.23110453]
[1750175839809,0.01067708,104310.0,104300.0,0.27389161]
[1750175840016,0.23117292,104310.0,104300.0,0.23554218]
[1750175840226,0.25547942,104310.0,104300.0,0.001]
[1750175840405,0.25547942,104310.0,104300.0,0.19275455]
[1750175840654,0.25547942,104310.0,104300.0,0.20234227]
[1750175840862,0.42063942,104310.0,104300.0,0.2119299]
[1750175841068,0.42063887,104310.0,104300.0,0.22151726]
[1750175841288,0.38674649,104310.0,104300.0,0.24069169]
[1750175841498,0.22158649,104310.0,104300.0,0.22151726]
[1750175841711,0.37716024,104310.0,104300.0,0.001]
[1750175841927,0.36757371,104310.0,104300.0,0.001]
[1750175842287,0.36757371,104310.0,104300.0,0.19275455]
[1750175842485,0.46372293,104310.0,104300.0,0.001]
[1750175843524,0.00109092,104310.0,104300.0,1.39343842]
[1750175843758,0.00109092,104310.0,104300.0,0.81214982]
[1750175843891,0.02026315,104310.0,104300.0,0.39599923]
[1750175844094,0.02884931,104310.0,104300.0,0.26915747]
[1750175844297,0.01917407,104300.0,104290.0,0.25062101]
[1750175844512,0.02876152,104300.0,104290.0,0.23969765]
[1750175844728,0.01917407,104300.0,104290.0,0.23969765]
[1750175844926,0.03834887,104300.0,104290.0,0.23969765]
[1750175845138,0.03834887,104300.0,104290.0,0.22052119]
[1750175845139,0.02876197,104300.0,104290.0,0.22052119]
[1750175845375,0.08882303,104300.0,104290.0,0.21093319]
[1750175845799,0.08882294,104300.0,104290.0,0.23010937]
[1750175846003,0.00809092,104310.0,104300.0,0.25151662]
[1750175846211,0.00809092,104310.0,104300.0,0.66524839]
[1750175846643,0.00809092,104310.0,104300.0,0.67978924]
[1750175846882,0.00809092,104310.0,104300.0,0.71148924]
[1750175847097,0.00109092,104310.0,104300.0,0.71148924]
[1750175847711,0.00109092,104310.0,104300.0,0.39399923]
[1750175847927,0.00109092,104310.0,104300.0,0.807731]
[1750175848495,9.092e-05,104310.0,104300.0,0.807731]
[1750175850279,9.092e-05,104310.0,104300.0,0.36229923]
[1750175850714,9.092e-05,104310.0,104300.0,0.806031]
[1750175851986,9.092e-05,104310.0,104300.0,0.776031]
[1750175852189,0.00967699,104310.0,104300.0,0.43113747]
[1750175852432,0.02406464,104310.0,104300.0,0.43113747]
[1750175852839,9.092e-05,104310.0,104300.0,0.43113747]
[1750175853070,0.0096769,104310.0,104300.0,0.43113747]
[1750175853276,9.092e-05,104310.0,104300.0,0.43113747]
[1750175853483,0.01149607,104330.0,104300.0,1.19461952]
[1750175853678,0.07317992,104380.0,104370.0,0.20118995]
[1750175853920,0.00958065,104370.0,104360.0,0.6053442]
[1750175854175,0.00958065,104370.0,104360.0,0.63408973]
[1750175854361,0.21078733,104370.0,104360.0,0.19161243]
[1750175854582,0.00958138,104360.0,104350.0,0.834351]
[1750175854799,0.00958138,104360.0,104350.0,0.84393376]
[1750175855016,0.01930571,104360.0,104350.0,0.84393376]
[1750175855237,0.00014276,104360.0,104350.0,0.84393376]
[1750175856479,0.00014276,104360.0,104350.0,0.84493376]
[1750175857182,0.00014276,104360.0,104350.0,0.67985376]
[1750175857391,0.01930562,104360.0,104350.0,0.41662114]
[1750175857607,0.00014276,104360.0,104350.0,0.41662114]
[1750175857836,0.01930562,104360.0,104350.0,0.41662114]
[1750175858069,0.00972414,104360.0,104350.0,0.41662114]
[1750175858280,0.00014276,104360.0,104350.0,0.83035291]
[1750175858501,0.08035696,104360.0,104350.0,0.80011291]
[1750175858723,0.2815831,104360.0,104350.0,0.20221589]
[1750175858950,0.0899388,104360.0,104350.0,0.20221589]
[1750175859171,0.09952073,104360.0,104350.0,0.21179865]
[1750175859397,0.10410276,104360.0,104350.0,0.2309639]
[1750175859631,0.01916304,104360.0,104350.0,0.24054639]
[1750175859847,0.22997121,104360.0,104350.0,0.21179865]
[1750175860298,0.22997121,104360.0,104350.0,0.20221589]
[1750175860299,0.23955342,104360.0,104350.0,0.20221589]
[1750175860574,1.12538207,104360.0,104350.0,0.001]
[1750175860830,1.22153129,104360.0,104350.0,0.001]
[1750175861082,0.80779952,104360.0,104350.0,0.001]
[1750175861311,0.80779952,104360.0,104350.0,0.00104]
[1750175862503,0.80779952,104360.0,104350.0,4e-05]
[1750175862714,0.80879952,104360.0,104350.0,4e-05]
[1750175862936,0.81079952,104360.0,104350.0,4e-05]
[1750175864830,1.02131952,104360.0,104350.0,4e-05]
[1750175865471,0.99192628,104360.0,104350.0,4e-05]
[1750175865681,1.40565805,104360.0,104350.0,4e-05]
[1750175866353,1.60817805,104360.0,104350.0,4e-05]
[1750175868742,1.39765805,104360.0,104350.0,4e-05]
[1750175868949,1.63082387,104360.0,104350.0,4e-05]
[1750175869800,1.62882387,104360.0,104350.0,4e-05]
[1750175869999,1.63282387,104360.0,104350.0,0.00104]
[1750175870208,1.66161187,104360.0,104350.0,0.00104]
[1750175870415,1.66061187,104360.0,104350.0,0.00104]
[1750175870862,1.2468801,104360.0,104350.0,0.00104]
[1750175871084,1.66261187,104360.0,104350.0,0.00104]
[1750175871309,1.66261187,104360.0,104350.0,0.01104]
[1750175874298,1.45213187,104360.0,104350.0,0.01104]
[1750175874755,1.66261187,104360.0,104350.0,0.01104]
[1750175875200,1.45213187,104360.0,104350.0,0.01104]
[1750175875416,1.66261187,104360.0,104350.0,0.01104]
[1750175877627,0.70703088,104360.0,104350.0,0.01104]
[1750175877843,0.67513088,104360.0,104350.0,0.01104]
[1750175878062,0.86288506,104360.0,104350.0,0.01104]
[1750175879989,0.69800506,104360.0,104350.0,0.01104]
[1750175880206,0.86288506,104360.0,104350.0,0.01104]
[1750175880413,0.95903428,104360.0,104350.0,0.01104]
[1750175880842,1.37276605,104360.0,104350.0,0.01104]
[1750175881559,1.16232605,104360.0,104350.0,0.01104]
[1750175881777,0.95903428,104360.0,104350.0,0.01104]
[1750175882429,0.86284506,104360.0,104350.0,0.01104]
[1750175882708,0.6017633,104360.0,104350.0,0.04274]
[1750175882970,0.41762633,104360.0,104350.0,0.29345132]
[1750175883208,0.22598175,104360.0,104350.0,0.30303381]
[1750175883439,0.78637168,104360.0,104350.0,0.28386865]